Workbook

Sheet Меню 7-10 лет!!!
A1: Меню
A2: Примерное двенадцатидневное меню для обучающихся в общеобразовательных учреждениях с 1-4 классы
A4: № Сб.рец | B4: Наименование продуктов | C4: Выход,г | D4: Белки,г | E4: Жиры,г | F4: Угл-ды,г | G4: Энер.ценность (ККАЛ) | H4: В1,мг | I4: С,мг | J4: А,мкг | K4: Е,мг | L4: Са,мг | M4: Р,мг | N4: Mg,мг | O4: Fe,мг
A5: 1-ая неделя
B6: 1 день
A7: № 338, Сбор рец. На прод-ию для обуч. Во всех образ. Учреж Дели 2017 | B7: Плоды и ягоды свежие (яблоки) | C7: 100 | D7: 0.40 | E7: 0.40 | F7: 9.80 | G7: 47.00 | H7: 0.030 | I7: 10.00 | K7: 0.20 | L7: 16.00 | M7: 11.00 | N7: 9.00 | O7: 2.20
A8: №10 Сбор рец. На продукцию пит.для детей в дошк учреждениях, Дели 2016 | B8: Икра кабачковая | C8: 60 | D8: 0.54 | E8: 2.82 | F8: 3.55 | G8: 41.76 | H8: 0.014 | I8: 3.31 | K8: 1.43 | L8: 10.90 | M8: 13.67 | N8: 7.91 | O8: 0.37
A9: ТТК | B9: Котлеты "Пожарские" из говядины | C9: 80 | D9: 8.80 | E9: 7.70 | F9: 8.836 | G9: 168.00 | H9: 0.053 | I9: 1.20 | K9: 1.254 | L9: 14.252 | M9: 109.083 | N9: 14.642 | O9: 1.606
A10: № 171 сб шк 2017 | B10: Каша гречневая рассыпчатая маслом сливочным | C10: 150/5 | D10: 6.66 | E10: 9.024 | F10: 33.00 | G10: 170.00 | H10: 0.29 | J10: 41.00 | K10: 0.52 | L10: 27.35 | M10: 180.55 | N10: 104.55 | O10: 3.50
A11: № 377, Сбор рец. На прод-ию для обуч. Во всех образ. Учреж Дели 2017 | B11: Чай черный с сахаром, лимоном | C11: 200/15/7 | D11: 0.13 | E11: 0.02 | F11: 15.20 | G11: 62.00 | I11: 2.83 | K11: 0.010 | L11: 14.20 | M11: 4.40 | N11: 2.40 | O11: 0.360
A12: табл 6 стр 134,Хим. Состав и калорийность российских продуктов питания Дели + 2012 | B12: Хлеб белый | C12: 30 | D12: 2.28 | E12: 0.24 | F12: 14.76 | G12: 70.50 | H12: 0.03 | K12: 0.33 | L12: 6.00 | M12: 19.50 | N12: 4.20 | O12: 0.33
A13: табл 6 стр 144,Хим. Состав и калорийность российских продуктов питания Дели + 2012 | B13: Хлеб сельский | C13: 20 | D13: 1.00 | E13: 0.20 | F13: 9.00 | G13: 44.00 | H13: 0.01 | K13: 0.11 | L13: 2.76 | M13: 12.72 | N13: 3.00 | O13: 0.37
B14: Итого: | C14: 667 | D14: =SUM(D7:D13) -> 19.82 | E14: =SUM(E7:E13) -> 20.40 | F14: 94.15 | G14: 603.26 | H14: 0.44 | I14: 17.34 | J14: 41.00 | K14: 3.85 | L14: 91.46 | M14: 350.93 | N14: 145.71 | O14: 8.73
B15: 2 день
A16: табл 9 стр 186,Хим. Состав и калорийность российских продуктов питания Дели + 2012 | B16: Плоды и ягоды свежие (мандарин) | C16: 100 | D16: 0.80 | E16: 0.20 | F16: 7.50 | G16: 38.00 | H16: 0.06 | I16: 38.00 | K16: 0.20 | L16: 35.00 | M16: 17.00 | N16: 11.00 | O16: 0.10
A17: № 52, Сбор рец. На прод-ию для обуч. Во всех образ. Учреж Дели 2017 | B17: Салат из отварной свеклы с маслом растительным | C17: 60 | D17: 0.85 | E17: 3.61 | F17: 4.96 | G17: 55.68 | H17: 0.01 | I17: 3.99 | K17: 1.62 | L17: 21.28 | M17: 24.38 | N17: 12.42 | O17: 0.79
A18: ттк | B18: Жаркое из куриных грудок | C18: 50/150 | D18: 12.000 | E18: 16.120 | F18: 29.800 | G18: 295.000 | H18: 0.222 | I18: 27.825 | J18: 28.500 | K18: 2.174 | L18: 35.535 | M18: 197.840 | N18: 47.778 | O18: 2.260
A19: № 382, Сбор рец. На прод-ию для обуч. Во всех образ. Учреж Дели 2015 | B19: Чай с молоком | C19: 150/50/15 | D19: 1.52 | E19: 1.35 | F19: 15.90 | G19: 81.00 | H19: 0.04 | I19: 1.33 | J19: 10.00 | L19: 126.60 | M19: 92.80 | N19: 15.40 | O19: 0.41
A20: табл 6 стр 134,Хим. Состав и калорийность российских продуктов питания Дели + 2012 | B20: Хлеб белый | C20: 30 | D20: 2.280 | E20: 0.240 | F20: 14.760 | G20: 70.500 | H20: 0.033 | K20: 0.330 | L20: 6.000 | M20: 19.500 | N20: 4.200 | O20: 0.330
A21: табл 6 стр 144,Хим. Состав и калорийность российских продуктов питания Дели + 2012 | B21: Хлеб сельский | C21: 20 | D21: 1.000 | E21: 0.200 | F21: 9.000 | G21: 44.000 | H21: 0.014 | K21: 0.108 | L21: 2.760 | M21: 12.720 | N21: 3.000 | O21: 0.372
B22: Итого: | C22: 625 | D22: =D16+D17+D18+D19+D20+D21 -> 18.45 | E22: =E16+E17+E18+E19+E20+E21 -> 21.72 | F22: 81.92 | G22: 584.18 | H22: 0.38 | I22: 71.15 | J22: 38.50 | K22: 4.43 | L22: 227.18 | M22: 364.24 | N22: 93.80 | O22: 4.26
B23: 3 день
A24: табл 9 стр 184,Хим. Состав и калорийность российских продуктов питания Дели + 2012 | B24: Плоды и ягоды свежие (апельсин) | C24: 100 | D24: 0.90 | E24: 0.20 | F24: 8.10 | G24: 43.00 | H24: 0.040 | I24: 60.00 | K24: 0.20 | L24: 34.00 | M24: 23.00 | N24: 13.00 | O24: 0.30
A25: № 260, Сбор рец. На прод-ию для обуч. Во всех образ. Учреж Дели 2015 | B25: Гуляш из говядины | C25: 50/50 | D25: 9.750 | E25: 11.500 | F25: 7.985 | G25: 156.000 | H25: 0.061 | I25: 2.440 | K25: 2.598 | L25: 14.890 | M25: 159.066 | N25: 20.920 | O25: 2.340
A26: № 202, Сбор рец. На прод-ию для обуч. Во всех образ. Учреж Дели 2017 | B26: Макаронные изделия отварные | C26: 150 | D26: 5.660 | E26: 0.670 | F26: 31.920 | G26: 156.300 | H26: 0.057 | K26: 0.770 | L26: 11.190 | M26: 37.170 | N26: 8.620 | O26: 0.852
A27: №10 Сбор рец. На продукцию пит.для детей в дошк учреждениях, Дели 2016 | B27: Зеленый горошек (доп.гарнир) | C27: 60 | D27: 1.80 | E27: 3.12 | F27: 3.76 | G27: 50.16 | H27: 0.06 | I27: 6.60 | K27: 1.44 | L27: 12.88 | M27: 35.98 | N27: 12.48 | O27: 0.42
A28: № 377, Сбор рец. На прод-ию для обуч. Во всех образ. Учреж Дели 2015 | B28: Чай черный с сахаром с курагой | C28: 200/15/7 | D28: 0.427 | E28: 3.835 | F28: 15.020 | G28: 76.240 | I28: 0.030 | L28: 11.100 | M28: 2.800 | N28: 1.400 | O28: 0.280
A29: табл 6 стр 134,Хим. Состав и калорийность российских продуктов питания Дели + 2012 | B29: Хлеб белый | C29: 30 | D29: 2.280 | E29: 0.240 | F29: 14.760 | G29: 70.500 | H29: 0.033 | K29: 0.330 | L29: 6.000 | M29: 19.500 | N29: 4.200 | O29: 0.330
A30: табл 6 стр 144,Хим. Состав и калорийность российских продуктов питания Дели + 2012 | B30: Хлеб сельский | C30: 20 | D30: 1.000 | E30: 0.200 | F30: 9.000 | G30: 44.000 | H30: 0.014 | K30: 0.108 | L30: 2.760 | M30: 12.720 | N30: 3.000 | O30: 0.372
B31: Итого: | C31: 682 | D31: =D24+D25+D26+D27+D28+D29+D30 -> 21.82 | E31: =E24+E25+E26+E27+E28+E29+E30 -> 19.77 | F31: 90.55 | G31: 596.20 | H31: 0.27 | I31: 69.07 | J31: 0.00 | K31: 5.45 | L31: 92.82 | M31: 290.24 | N31: 63.62 | O31: 4.89
B32: 4 день
A33: № 338, Сбор рец. На прод-ию для обуч. Во всех образ. Учреж Дели 2015 | B33: Плоды и ягоды свежие (яблоки) | C33: 100 | D33: 0.40 | E33: 0.40 | F33: 9.80 | G33: 47.00 | H33: 0.030 | I33: 10.00 | K33: 0.20 | L33: 16.00 | M33: 11.00 | N33: 9.00 | O33: 2.20
A34: № 47, Сбор рец. На прод-ию для обуч. Во всех образ. Учреж Дели 2017 | B34: Салат из квашеной капусты | C34: 60 | D34: 1.02 | E34: 3.00 | F34: 5.08 | G34: 51.42 | H34: 0.01 | I34: 11.89 | K34: 9.24 | L34: 31.35 | M34: 20.37 | N34: 4.80 | O34: 0.40
A35: ттк | B35: Биточки рыбные | C35: 80 | D35: 9.800 | E35: 5.400 | F35: 3.682 | G35: 104.000 | H35: 0.017 | I35: 5.000 | J35: 25.000 | K35: 0.946 | L35: 8.242 | M35: 21.297 | N35: 1.124 | O35: 0.303
A36: № 312, Сбор рец. На прод-ию для обуч. Во всех образ. Учреж Дели 2015 | B36: Пюре картофельное с маслом | C36: 150/5 | D36: 3.090 | E36: 8.282 | F36: 22.067 | G36: 179.000 | H36: 0.164 | I36: 5.000 | J36: 45.500 | K36: 0.231 | L36: 47.808 | M36: 98.835 | N36: 32.978 | O36: 1.241
A37: № 379, Сбор рец. На прод-ию для обуч. Во всех образ. Учреж Дели 2017 | B37: Кофейный напиток с молоком | C37: 200 | D37: 3.166 | E37: 2.680 | F37: 15.950 | G37: 100.600 | H37: 0.044 | I37: 1.300 | J37: 20.000 | L37: 125.780 | M37: 90.000 | N37: 14.000 | O37: 0.134
A38: табл 6 стр 134,Хим. Состав и калорийность российских продуктов питания Дели + 2012 | B38: Хлеб белый | C38: 30 | D38: 2.280 | E38: 0.240 | F38: 14.760 | G38: 70.500 | H38: 0.033 | K38: 0.330 | L38: 6.000 | M38: 19.500 | N38: 4.200 | O38: 0.330
A39: табл 6 стр 144,Хим. Состав и калорийность российских продуктов питания Дели + 2012 | B39: Хлеб сельский | C39: 20 | D39: 1.000 | E39: 0.200 | F39: 9.000 | G39: 44.000 | H39: 0.014 | K39: 0.108 | L39: 2.760 | M39: 12.720 | N39: 3.000 | O39: 0.372
B40: Итого: | C40: 645 | D40: =SUM(D33:D39) -> 20.76 | E40: =SUM(E33:E39) -> 20.20 | F40: 80.33 | G40: 596.52 | H40: 0.31 | I40: 33.19 | J40: 90.50 | K40: 11.06 | L40: 237.94 | M40: 273.72 | N40: 69.10 | O40: 4.98
B41: 5 день
A42: № 71, Сбор рец. На прод-ию для обуч. Во всех образ. Учреж Дели 2017 | B42: Овощи натуральные (помидоры) | C42: 60 | D42: 0.66 | E42: 0.12 | F42: 2.28 | G42: 13.2 | H42: 0.036 | I42: 10.5 | K42: 0.42 | L42: 8.4 | M42: 15.6 | N42: 12 | O42: 0.54
A43: № 268, Сбор рец. На прод-ию для обуч. Во всех образ. Учреж Дели 2015 | B43: Плов с говядиной | C43: 50/150 | D43: 15.900 | E43: 18.900 | F43: 40.095 | G43: 422.000 | H43: 0.106 | I43: 3.510 | K43: 3.931 | L43: 22.131 | M43: 240.284 | N43: 51.154 | O43: 2.932
A44: № 377, Сбор рец. На прод-ию для обуч. Во всех образ. Учреж Дели 2015 | B44: Чай черный с сахаром, лимоном | C44: 200/15/7 | D44: 0.13 | E44: 0.02 | F44: 15.20 | G44: 62.00 | I44: 2.83 | K44: 0.010 | L44: 14.20 | M44: 4.40 | N44: 2.40 | O44: 0.360
A45: табл 6 стр 134,Хим. Состав и калорийность российских продуктов питания Дели + 2012 | B45: Хлеб белый | C45: 30 | D45: 2.28 | E45: 0.24 | F45: 14.76 | G45: 70.50 | H45: 0.033 | K45: 0.330 | L45: 6.000 | M45: 19.500 | N45: 4.200 | O45: 0.330
A46: табл 6 стр 144,Хим. Состав и калорийность российских продуктов питания Дели + 2012 | B46: Хлеб сельский | C46: 20 | D46: 1.00 | E46: 0.20 | F46: 9.00 | G46: 44.00 | H46: 0.014 | K46: 0.108 | L46: 2.760 | M46: 12.720 | N46: 3.000 | O46: 0.372
B47: Итого: | C47: 532 | D47: =SUM(D42:D46) -> 19.97 | E47: =SUM(E42:E46) -> 19.48 | F47: 81.34 | G47: 611.70 | H47: 0.19 | I47: 16.84 | J47: 0.00 | K47: 4.80 | L47: 53.49 | M47: 292.50 | N47: 72.75 | O47: 4.53
B48: 6 день
A49: № 338, Сбор рец. На прод-ию для обуч. Во всех образ. Учреж Дели 2015 | B49: Плоды и ягоды свежие (яблоки) | C49: 100 | D49: 0.40 | E49: 0.40 | F49: 9.80 | G49: 47.00 | H49: 0.030 | I49: 10.00 | K49: 0.20 | L49: 16.00 | M49: 11.00 | N49: 9.00 | O49: 2.20
A50: № 3, Сбор рец. На прод-ию для обуч. Во всех образ. Учреж Дели 2017 | B50: Бутерброд с сыром | C50: 50 | D50: 6.27 | E50: 7.86 | F50: 14.83 | G50: 155.00 | H50: 0.04 | I50: 0.11 | J50: 51.50 | K50: 0.45 | L50: 157.20 | M50: 111.00 | N50: 12.45 | O50: 0.45
A51: ттк | B51: Пельмени "Для умников и умниц" (п/ф) отварные с маслом сливочным | C51: 190/5 | D51: 11.940 | E51: 13.375 | F51: 27.340 | G51: 279.000 | H51: 0.168 | I51: 2.629 | J51: 34.043 | K51: 1.354 | L51: 47.058 | M51: 212.108 | N51: 29.119 | O51: 2.536
A52: № 382, Сбор рец. На прод-ию для обуч. Во всех образ. Учреж Дели 2015 | B52: Чай с молоком | C52: 150/50/15 | D52: 1.52 | E52: 1.35 | F52: 15.90 | G52: 81.00 | H52: 0.04 | I52: 1.33 | J52: 10.00 | L52: 126.60 | M52: 92.80 | N52: 15.40 | O52: 0.41
A53: табл 6 стр 144,Хим. Состав и калорийность российских продуктов питания Дели + 2012 | B53: Хлеб сельский | C53: 20 | D53: 1.00 | E53: 0.20 | F53: 9.00 | G53: 44.00 | H53: 0.01 | K53: 0.11 | L53: 2.76 | M53: 12.72 | N53: 3.00 | O53: 0.37
B54: Итого: | C54: 580 | D54: =SUM(D49:D53) -> 21.13 | E54: =SUM(E49:E53) -> 23.19 | F54: 76.87 | G54: 606.00 | H54: 0.30 | I54: 14.07 | J54: 95.54 | K54: 2.11 | L54: 349.62 | M54: 439.63 | N54: 68.97 | O54: 5.97
A55: 2-ая неделя
B56: 1 день
A57: табл 9 стр 186,Хим. Состав и калорийность российских продуктов питания Дели + 2012 | B57: Плоды и ягоды свежие (мандарин) | C57: 100 | D57: 0.80 | E57: 0.20 | F57: 7.50 | G57: 38.00 | H57: 0.06 | I57: 38.00 | K57: 0.20 | L57: 35.00 | M57: 17.00 | N57: 11.00 | O57: 0.10
A58: ттк | B58: Котлеты "Аппетитные" мясо-куриные | C58: 80 | D58: 7.800 | E58: 9.980 | F58: 5.122 | G58: 115.000 | H58: 0.057 | I58: 1.604 | J58: 12.880 | K58: 1.261 | L58: 15.062 | M58: 117.121 | N58: 15.147 | O58: 1.594
A59: № 202, Сбор рец. На прод-ию для обуч. Во всех образ. Учреж Дели 2015 | B59: Макаронные изделия отварные с маслом сливочным | C59: 150/5 | D59: 5.140 | E59: 8.093 | F59: 28.540 | G59: 220.000 | H59: 0.087 | J59: 21.000 | K59: 0.816 | L59: 16.457 | M59: 47.009 | N59: 8.479 | O59: 0.869
A60: №10 Сбор рец. На продукцию пит.для детей в дошк учреждениях, Дели 2016 | B60: Кукуруза консервированная (доп.гарнир) | C60: 60 | D60: 1.725 | E60: 3.705 | F60: 4.824 | G60: 59.580 | H60: 0.060 | I60: 5.580 | K60: 1.695 | L60: 11.190 | M60: 34.665 | N60: 11.718 | O60: 0.390
A61: № 376, Сбор рец. На прод-ию для обуч. Во всех образ. Учреж Дели 2015 | B61: Чай черный с сахаром | C61: 200/15 | D61: 0.070 | E61: 0.020 | F61: 15.000 | G61: 60.000 | I61: 0.030 | L61: 11.100 | M61: 2.800 | N61: 1.400 | O61: 0.280
A62: табл 6 стр 134,Хим. Состав и калорийность российских продуктов питания Дели + 2012 | B62: Хлеб белый | C62: 30 | D62: 2.280 | E62: 0.240 | F62: 14.760 | G62: 70.500 | H62: 0.033 | K62: 0.330 | L62: 6.000 | M62: 19.500 | N62: 4.200 | O62: 0.330
A63: табл 6 стр 144,Хим. Состав и калорийность российских продуктов питания Дели + 2012 | B63: Хлеб сельский | C63: 20 | D63: 1.000 | E63: 0.200 | F63: 9.000 | G63: 44.000 | H63: 0.014 | K63: 0.108 | L63: 2.760 | M63: 12.720 | N63: 3.000 | O63: 0.372
B64: Итого: | C64: 660 | D64: =SUM(D57:D63) -> 18.82 | E64: =SUM(E57:E63) -> 22.44 | F64: 84.75 | G64: 607.08 | H64: 0.31 | I64: 45.21 | J64: 33.88 | K64: 4.41 | L64: 97.57 | M64: 250.82 | N64: 54.94 | O64: 3.94
B65: 2 день
A66: № 338, Сбор рец. На прод-ию для обуч. Во всех образ. Учреж Дели 2015 | B66: Плоды и ягоды свежие (яблоки) | C66: 100 | D66: 0.40 | E66: 0.40 | F66: 9.80 | G66: 47.00 | H66: 0.030 | I66: 10.00 | K66: 0.20 | L66: 16.00 | M66: 11.00 | N66: 9.00 | O66: 2.20
A67: ттк | B67: Ежики мясные с рисом в соусе томатном | C67: 60/40 | D67: 9.587 | E67: 12.600 | F67: 9.451 | G67: 179.000 | H67: 0.049 | I67: 2.517 | K67: 2.096 | L67: 12.795 | M67: 107.490 | N67: 18.180 | O67: 1.531
A68: № 312, Сбор рец. На прод-ию для обуч. Во всех образ. Учреж Дели 2015 | B68: Пюре картофельное | C68: 150 | D68: 3.090 | E68: 4.657 | F68: 22.027 | G68: 146.000 | H68: 0.163 | I68: 25.943 | J68: 25.500 | K68: 0.181 | L68: 46.606 | M68: 97.336 | N68: 32.978 | O68: 1.231
A69: № 70, Сбор рец. На прод-ию для обуч. Во всех образ. Учреж Дели 2017 | B69: Овощи натуральные соленые (огурцы) /доп.гарнир | C69: 60 | D69: 0.480 | E69: 0.060 | F69: 1.020 | G69: 6.000 | H69: 0.012 | I69: 2.100 | K69: 0.060 | L69: 13.800 | M69: 14.400 | N69: 8.400 | O69: 0.360
A70: № 382, Сбор рец. На прод-ию для обуч. Во всех образ. Учреж Дели 2017 | B70: Какао с молоком | C70: 200 | D70: 4.078 | E70: 3.544 | F70: 17.578 | G70: 118.600 | H70: 0.056 | I70: 1.588 | J70: 24.400 | L70: 152.220 | M70: 124.560 | N70: 21.340 | O70: 0.478
A71: табл 6 стр 134,Хим. Состав и калорийность российских продуктов питания Дели + 2012 | B71: Хлеб белый | C71: 30 | D71: 2.280 | E71: 0.240 | F71: 14.760 | G71: 70.500 | H71: 0.033 | K71: 0.330 | L71: 6.000 | M71: 19.500 | N71: 4.200 | O71: 0.330
A72: табл 6 стр 144,Хим. Состав и калорийность российских продуктов питания Дели + 2012 | B72: Хлеб сельский | C72: 20 | D72: 1.000 | E72: 0.200 | F72: 9.000 | G72: 44.000 | H72: 0.014 | K72: 0.108 | L72: 2.760 | M72: 12.720 | N72: 3.000 | O72: 0.372
B73: Итого: | C73: 660 | D73: =SUM(D66:D72) -> 20.92 | E73: =SUM(E66:E72) -> 21.70 | F73: 83.64 | G73: 611.10 | H73: 0.36 | I73: 42.15 | J73: 49.90 | K73: 2.98 | L73: 250.18 | M73: 387.01 | N73: 97.10 | O73: 6.50
B74: 3 день
A75: табл 9 стр 184,Хим. Состав и калорийность российских продуктов питания Дели + 2012 | B75: Плоды и ягоды свежие (апельсин) | C75: 100 | D75: 0.90 | E75: 0.20 | F75: 8.10 | G75: 43.00 | H75: 0.040 | I75: 60.00 | K75: 0.20 | L75: 34.00 | M75: 23.00 | N75: 13.00 | O75: 0.30
A76: № 47, Сбор рец. На прод-ию для обуч. Во всех образ. Учреж Дели 2017 | B76: Салат из квашеной капусты | C76: 60 | D76: 1.02 | E76: 3.00 | F76: 5.08 | G76: 51.42 | H76: 0.01 | I76: 11.89 | K76: 9.24 | L76: 31.35 | M76: 20.37 | N76: 4.80 | O76: 0.40
A77: ттк | B77: Гуляш из куриных грудок | C77: 50/50 | D77: 8.958 | E77: 8.320 | F77: 3.396 | G77: 171.000 | H77: 0.078 | I77: 3.970 | J77: 28.400 | K77: 3.197 | L77: 17.166 | M77: 122.746 | N77: 18.274 | O77: 1.137
A78: № 30, Сбор рец. На прод-ию для обуч. Во всех образ. Учреж Дели 2015 | B78: Каша гречневая рассыпчатая | C78: 150 | D78: 6.622 | E78: 9.024 | F78: 33.000 | G78: 170.000 | H78: 0.291 | J78: 21.000 | K78: 0.468 | L78: 20.632 | M78: 177.928 | N78: 104.220 | O78: 3.448
A79: № 377, Сбор рец. На прод-ию для обуч. Во всех образ. Учреж Дели 2017 | B79: Чай черный с сахаром, лимоном | C79: 200/15/7 | D79: 0.13 | E79: 0.02 | F79: 15.20 | G79: 62.00 | I79: 2.83 | K79: 0.010 | L79: 14.20 | M79: 4.40 | N79: 2.40 | O79: 0.360
A80: табл 6 стр 134,Хим. Состав и калорийность российских продуктов питания Дели + 2012 | B80: Хлеб белый | C80: 30 | D80: 2.280 | E80: 0.240 | F80: 14.760 | G80: 70.500 | H80: 0.033 | K80: 0.330 | L80: 6.000 | M80: 19.500 | N80: 4.200 | O80: 0.330
A81: табл 6 стр 144,Хим. Состав и калорийность российских продуктов питания Дели + 2012 | B81: Хлеб сельский | C81: 20 | D81: 1.000 | E81: 0.200 | F81: 9.000 | G81: 44.000 | H81: 0.014 | K81: 0.108 | L81: 2.760 | M81: 12.720 | N81: 3.000 | O81: 0.372
B82: Итого: | C82: 682 | D82: =SUM(D75:D81) -> 20.91 | E82: =SUM(E75:E81) -> 21.00 | F82: 88.53 | G82: 611.92 | H82: 0.47 | I82: 78.69 | J82: 49.40 | K82: 13.55 | L82: 126.11 | M82: 380.66 | N82: 149.89 | O82: 6.35
B83: 4 день
A84: №10 Сбор рец. На продукцию пит.для детей в дошк учреждениях, Дели 2016 | B84: Икра кабачковая | C84: 60 | D84: 0.54 | E84: 2.82 | F84: 3.55 | G84: 41.76 | H84: 0.014 | I84: 3.31 | K84: 1.43 | L84: 10.90 | M84: 13.67 | N84: 7.91 | O84: 0.37
A85: ТТК | B85: Грудка куриная (маринованное филе) в сливочном соусе | C85: 60/30 | D85: 11.650 | E85: 10.756 | F85: 1.632 | G85: 154.000 | H85: 0.068 | I85: 2.326 | J85: 68.677 | K85: 3.956 | L85: 25.185 | M85: 123.198 | N85: 15.716 | O85: 1.009
A86: № 304, Сбор рец. На прод-ию для обуч. Во всех образ. Учреж Дели 2015 | B86: Рис отварной | C86: 150 | D86: 3.834 | E86: 5.420 | F86: 31.600 | G86: 210.000 | H86: 0.044 | J86: 27.000 | K86: 0.284 | L86: 11.460 | M86: 84.150 | N86: 27.330 | O86: 0.597
A87: № 377, Сбор рец. На прод-ию для обуч. Во всех образ. Учреж Дели 2015 | B87: Чай черный с сахаром с курагой | C87: 200/15/7 | D87: 0.521 | E87: 0.005 | F87: 21.725 | G87: 88.000 | H87: 0.150 | J87: 0.090 | K87: 1.500 | L87: 100.450 | M87: 80.000 | N87: 40.000 | O87: 1.845
A88: табл 6 стр 134,Хим. Состав и калорийность российских продуктов питания Дели + 2012 | B88: Хлеб белый | C88: 30 | D88: 2.280 | E88: 0.240 | F88: 14.760 | G88: 70.500 | H88: 0.033 | K88: 0.330 | L88: 6.000 | M88: 19.500 | N88: 4.200 | O88: 0.330
A89: табл 6 стр 144,Хим. Состав и калорийность российских продуктов питания Дели + 2012 | B89: Хлеб сельский | C89: 20 | D89: 1.000 | E89: 0.200 | F89: 9.000 | G89: 44.000 | H89: 0.014 | K89: 0.108 | L89: 2.760 | M89: 12.720 | N89: 3.000 | O89: 0.372
B90: Итого: | C90: 575 | D90: =SUM(D84:D89) -> 19.83 | E90: =SUM(E84:E89) -> 19.44 | F90: 82.27 | G90: 608.26 | H90: 0.32 | I90: 5.64 | J90: 95.77 | K90: 7.61 | L90: 156.76 | M90: 333.24 | N90: 98.16 | O90: 4.52
B91: 5 день
A92: № 52, Сбор рец. На прод-ию для обуч. Во всех образ. Учреж Дели 2017 | B92: Салат из свеклы отварной с зеленым горошком | C92: 60 | D92: 0.99 | E92: 2.47 | F92: 4.38 | G92: 43.74 | H92: 0.03 | I92: 4.12 | K92: 1.13 | L92: 17.00 | M92: 24.97 | N92: 11.04 | O92: 0.78
A93: № 280, Сбор рец. На прод-ию для обуч. Во всех образ. Учреж Дели 2017 | B93: Фрикадельки из говядины | C93: 80 | D93: 11.09 | E93: 12.83 | F93: 10.28 | G93: 202.05 | H93: 0.03 | I93: 0.13 | K93: 3.67 | L93: 14.47 | M93: 95.15 | N93: 13.93 | O93: 7.46
A94: № 145, Сбор рец. На прод-ию для обуч. Во всех образ. Учреж Дели 2017 | B94: Картофель тушеный с луком | C94: 150 | D94: 3.14 | E94: 10.58 | F94: 21.11 | G94: 195.00 | H94: 0.15 | I94: 17.99 | J94: 12.00 | K94: 4.25 | L94: 33.20 | M94: 84.69 | N94: 28.67 | O94: 1.22
A95: № 376, Сбор рец. На прод-ию для обуч. Во всех образ. Учреж Дели 2015 | B95: Чай черный с сахаром | C95: 200/15 | D95: 0.070 | E95: 0.020 | F95: 15.000 | G95: 60.000 | I95: 0.030 | L95: 11.100 | M95: 2.800 | N95: 1.400 | O95: 0.280
A96: табл 6 стр 134,Хим. Состав и калорийность российских продуктов питания Дели + 2012 | B96: Хлеб белый | C96: 30 | D96: 2.28 | E96: 0.24 | F96: 14.76 | G96: 70.50 | H96: 0.033 | K96: 0.330 | L96: 6.000 | M96: 19.500 | N96: 4.200 | O96: 0.330
A97: табл 6 стр 144,Хим. Состав и калорийность российских продуктов питания Дели + 2012 | B97: Хлеб сельский | C97: 20 | D97: 1.00 | E97: 0.20 | F97: 9.00 | G97: 44.00 | H97: 0.014 | K97: 0.108 | L97: 2.760 | M97: 12.720 | N97: 3.000 | O97: 0.372
B98: Итого: | C98: 555 | D98: =SUM(D92:D97) -> 18.56 | E98: =SUM(E92:E97) -> 26.34 | F98: 74.52 | G98: 615.29 | H98: 0.25 | I98: 22.26 | J98: 12.00 | K98: 9.48 | L98: 84.53 | M98: 239.83 | N98: 62.24 | O98: 10.44
B99: 6 день
A100: № 1 Сбор рец. На прод-ию для обуч. Во всех образ. Учреж Дели 2017 | B100: Бутерброд с маслом сливочным | C100: 40 | D100: 2.360 | E100: 7.490 | F100: 14.890 | G100: 136.000 | H100: 0.034 | J100: 40.000 | K100: 0.440 | L100: 8.400 | M100: 22.500 | N100: 4.200 | O100: 0.350
A101: № 243, Сбор рец. На прод-ию для обуч. Во всех образ. Учреж Дели 2015 | B101: Сосиски отварные | C101: 100 | D101: 7.400 | E101: 9.450 | F101: 0.800 | G101: 108.000 | H101: 0.030 | K101: 0.500 | L101: 25.000 | M101: 139.001 | N101: 15.000 | O101: 1.800
A102: № 202, Сбор рец. На прод-ию для обуч. Во всех образ. Учреж Дели 2015 | B102: Макаронные изделия отварные с маслом сливочным | C102: 150/5 | D102: 5.140 | E102: 8.068 | F102: 28.540 | G102: 220.000 | H102: 0.087 | J102: 21.000 | K102: 0.816 | L102: 16.457 | M102: 47.009 | N102: 8.479 | O102: 0.869
A103: № 379, Сбор рец. На прод-ию для обуч. Во всех образ. Учреж Дели 2017 | B103: Кофейный напиток с молоком | C103: 200 | D103: 3.166 | E103: 2.680 | F103: 15.950 | G103: 100.600 | H103: 0.044 | I103: 1.300 | J103: 20.000 | L103: 125.780 | M103: 90.000 | N103: 14.000 | O103: 0.134
A104: табл 6 стр 144,Хим. Состав и калорийность российских продуктов питания Дели + 2012 | B104: Хлеб сельский | C104: 20 | D104: 1.000 | E104: 0.200 | F104: 9.000 | G104: 44.000 | H104: 0.014 | K104: 0.108 | L104: 2.760 | M104: 12.720 | N104: 3.000 | O104: 0.372
B105: Итого: | C105: 515 | D105: =SUM(D100:D104) -> 19.07 | E105: =SUM(E100:E104) -> 27.89 | F105: 69.18 | G105: 608.60 | H105: 0.21 | I105: 1.30 | J105: 81.00 | K105: 1.86 | L105: 178.40 | M105: 311.23 | N105: 44.68 | O105: 3.53
A106: ИТОГО за 12 дней: | C106: =C14+C22+C31+C40+C47+C54+C64+C73+C82+C90+C98+C105 -> 7378 | D106: =D14+D22+D31+D40+D47+D54+D64+D73+D82+D90+D98+D105 -> 240.05 | E106: 263.56 | F106: 988.03 | G106: 7260.11 | H106: 3.80 | I106: 416.90 | J106: 587.49 | K106: 71.58 | L106: 1946.04 | M106: 3914.04 | N106: 1020.96 | O106: 68.64
B107: Итого в среднем на 1 учащегося в день: | C107: =C106/12 -> 615 | D107: =D106/12 -> 20.00 | E107: 21.96 | F107: 82.34 | G107: 605.01 | H107: 0.32 | I107: 34.74 | J107: 48.96 | K107: 5.96 | L107: 162.17 | M107: 326.17 | N107: 85.08 | O107: 5.72
A111: *Сборник рецептур на продукцию для обучающихся во всех образовательных учреждениях, Москва Дели Плюс 2017, Могильный М.П., Тутельян В.А.
A112: *Сборник рецептур на продукцию для питания детей в дошкольных образовательных организациях, Москва Дели Плюс 2016, Могильный М.П., Тутельян В.А.
A113: *Сборник рецептур на продукцию для обучающихся во всех образовательных учреждениях, Москва Дели Плюс 2015, Могильный М.П., Тутельян В.А.
A114: *Химический состав и калорийность Российских продуктов питания,Москва Дели Плюс,2012 ,В.А.Тутельян
A115: * Витамин А в блюдах рассчитан в мкг
